bitfinex/quotes_BTCUSD_20251120
["timestamp","ask_amount","ask_price","bid_price","bid_amount"]
[1763676823817,0.04089,87968.0,87936.0,0.02731]
[1763676824020,0.04089,87968.0,87937.0,0.09530249]
[1763676824475,0.323,87969.0,87958.0,0.11476708]
[1763676824596,0.0202,87975.0,87960.0,0.02038]
[1763676824971,0.01784513,87967.0,87960.0,0.02038]
[1763676825176,0.01784513,87967.0,87961.0,0.06103471]
[1763676825404,0.01784513,87967.0,87961.0,0.0432]
[1763676825549,0.01784513,87967.0,87966.0,0.02731]
[1763676825755,0.01784513,87967.0,87966.0,0.07941249]
[1763676825979,0.01784513,87967.0,87966.0,0.12261249]
[1763676826190,0.01784513,87967.0,87966.0,0.13691174]
[1763676827125,0.01784513,87967.0,87966.0,0.12261249]
[1763676827299,0.01784513,87967.0,87966.0,0.05210249]
[1763676827507,0.01784513,87967.0,87966.0,0.12261249]
[1763676828781,0.01784513,87967.0,87966.0,0.12361249]
[1763676831722,0.01784513,87967.0,87966.0,0.14381249]
[1763676831925,0.01784513,87967.0,87966.0,0.16023174]
[1763676832123,0.01784513,87967.0,87966.0,0.14381249]
[1763676832322,0.60602517,87990.0,87967.0,0.05210249]
[1763676832323,0.54661114,87990.0,87967.0,0.05210249]
[1763676832527,0.54661114,87990.0,87983.0,0.11476708]
[1763676832835,0.0202,87994.0,87983.0,0.11476708]
[1763676833044,0.0202,87994.0,87984.0,0.01351471]
[1763676833242,0.0202,87994.0,87977.0,0.02038]
[1763676833243,0.0202,87994.0,87978.0,0.05210249]
[1763676833461,0.0202,87994.0,87982.0,0.11476708]
[1763676834430,0.0202,87994.0,87978.0,0.05210249]
[1763676834682,0.0202,87994.0,87980.0,0.11476708]
[1763676835092,0.323,87989.0,87980.0,0.11476708]
[1763676836286,0.04089,87991.0,87970.0,0.05210249]
[1763676836484,0.04089,87991.0,87978.0,0.11476708]
[1763676837111,0.323,87989.0,87978.0,0.11476708]
[1763676837509,0.04089,87988.0,87970.0,0.05210249]
[1763676837715,0.02761,87979.0,87972.0,0.11476708]
[1763676839587,0.00024777,87986.0,87972.0,0.11476708]
[1763676840672,0.04113777,87986.0,87972.0,0.11476708]
[1763676841172,0.04113777,87986.0,87964.0,0.02038]
[1763676841173,0.0202,87973.0,87964.0,0.02038]
[1763676841348,0.0202,87973.0,87958.0,0.11476708]
[1763676841349,0.02761,87970.0,87961.0,0.05210249]
[1763676841755,0.02761,87962.0,87958.0,0.11476708]
[1763676841959,0.02761,87962.0,87959.0,0.11476708]
[1763676842291,0.02761,87962.0,87948.0,0.05210249]
[1763676842292,0.014,87954.0,87948.0,0.05210249]
[1763676842503,0.014,87954.0,87944.0,0.11476708]
[1763676842782,0.014,87954.0,87946.0,0.05210249]
[1763676843078,0.0101,87980.0,87954.0,0.05210249]
[1763676843280,0.323,87979.0,87961.0,0.16686957]
[1763676843493,0.36541,87979.0,87962.0,0.11476708]
[1763676843835,0.323,87979.0,87978.0,0.04673]
[1763676844041,0.0101,87997.0,87979.0,0.05210249]
[1763676844266,0.0101,87997.0,87985.0,0.09918249]
[1763676844467,0.0101,87997.0,87985.0,0.11679393]
[1763676844677,0.0101,87997.0,87985.0,0.15713393]
[1763676846094,0.01808801,87986.0,87985.0,0.15713393]
[1763676846478,0.00024777,87986.0,87985.0,0.15713393]
[1763676848298,0.00024777,87986.0,87985.0,0.09918249]
[1763676848513,0.02783777,87986.0,87978.0,0.02013]
[1763676848714,0.02783777,87986.0,87965.0,0.03416909]
[1763676848715,0.01506,87979.0,87972.0,0.02048]
[1763676848921,0.01506,87979.0,87945.0,0.02048]
[1763676848922,0.01506,87979.0,87964.0,0.02048]
[1763676849141,0.01506,87979.0,87965.0,0.05210249]
[1763676849340,0.02119838,87978.0,87965.0,0.09244249]
[1763676849577,0.01506,87979.0,87967.0,0.05210249]
[1763676849740,0.02119838,87978.0,87967.0,0.05210249]
[1763676849941,0.01506,87979.0,87969.0,0.05210249]
[1763676850141,0.02119838,87978.0,87969.0,0.05210249]
[1763676850357,0.02119838,87978.0,87964.0,0.02048]
[1763676850358,0.02119838,87977.0,87965.0,0.05210249]
[1763676850701,0.02119838,87976.0,87967.0,0.05210249]
[1763676850841,0.323,87984.0,87983.0,0.02048]
[1763676851051,0.34422502,87984.0,87983.0,0.02048]
[1763676851474,0.02122502,87984.0,87983.0,0.02048]
[1763676852554,0.02122502,87984.0,87983.0,0.08742]
[1763676852998,0.02122502,87984.0,87983.0,0.13952249]
[1763676854271,0.00024777,87986.0,87984.0,0.05210249]
[1763676854449,0.00024777,87986.0,87985.0,0.07870249]
[1763676854665,0.00024777,87986.0,87985.0,0.14447145]
[1763676855704,0.00024777,87986.0,87985.0,0.17863042]
[1763676855903,5.101e-05,87986.0,87985.0,0.17863042]
[1763676856254,28.22316572,88000.0,87990.0,0.00999999]
[1763676856461,28.22316572,88000.0,87999.0,0.21394957]
[1763676856804,28.22316572,88000.0,87999.0,0.25428957]
[1763676858174,28.17928572,88000.0,87999.0,0.25428957]
[1763676858559,28.17928572,88000.0,87999.0,0.33469083]
[1763676858971,28.17928572,88000.0,87999.0,0.57828957]
[1763676859211,28.17928572,88000.0,87999.0,0.6064238]
[1763676859622,28.17928572,88000.0,87999.0,0.6054238]
[1763676859848,28.17928572,88000.0,87999.0,0.6074238]
[1763676860260,28.17928572,88000.0,87999.0,0.6054238]
[1763676860666,28.17928572,88000.0,87999.0,0.6074238]
[1763676861085,28.17928572,88000.0,87999.0,0.23232131]
[1763676861689,28.17928572,88000.0,87999.0,0.2844238]
[1763676861864,28.17971922,88000.0,87999.0,0.2824238]
[1763676862069,28.17971922,88000.0,87999.0,0.2844238]
[1763676862602,28.16438405,88000.0,87999.0,0.2844238]
[1763676864744,28.16361711,88000.0,87999.0,0.2844238]
[1763676864948,28.16361711,88000.0,87999.0,0.2824238]
[1763676865097,28.16361711,88000.0,87999.0,0.2834238]
[1763676865299,28.16361711,88000.0,87999.0,0.31757709]
[1763676865549,28.18144911,88000.0,87999.0,0.31757709]
[1763676865724,28.16361711,88000.0,87999.0,0.31757709]
[1763676865926,28.16361711,88000.0,87999.0,0.28944286]
[1763676868812,28.16597483,88000.0,87999.0,0.28944286]
[1763676871742,28.14814268,88000.0,87999.0,0.28944286]
[1763676872790,28.13267227,88000.0,87999.0,0.28944286]
[1763676873423,28.0981621,88000.0,87999.0,0.28944286]
[1763676873646,28.0981621,88000.0,87999.0,0.31838715]
[1763676874449,28.0981621,88000.0,87999.0,0.64138715]
[1763676875162,28.0981621,88000.0,87999.0,0.64038715]
[1763676875344,28.0981621,88000.0,87999.0,0.31938715]
[1763676876100,28.0981621,88000.0,87999.0,0.39950263]
[1763676876524,28.0981621,88000.0,87999.0,0.31938715]
[1763676876525,28.09797708,88000.0,87999.0,0.31938715]
[1763676876759,28.09797708,88000.0,87999.0,0.39950263]
[1763676877097,28.09797708,88000.0,87999.0,0.31938715]
[1763676878100,28.09797708,88000.0,87999.0,0.31919315]
[1763676882280,28.09797708,88000.0,87999.0,0.29024886]
[1763676883453,28.08630204,88000.0,87999.0,0.29024886]
[1763676884076,28.10413177,88000.0,87999.0,0.29024886]
[1763676884889,28.10413177,88000.0,87999.0,0.28824886]
[1763676885234,28.12196212,88000.0,87999.0,0.28824886]
[1763676885433,28.12196212,88000.0,87999.0,0.27702141]
[1763676885434,28.10413177,88000.0,87999.0,0.27702141]
[1763676885583,28.10413177,88000.0,87999.0,0.3291239]
[1763676885982,28.10413177,88000.0,87999.0,0.12357329]
[1763676886421,28.10413177,88000.0,87999.0,0.12157329]
[1763676886619,28.10413177,88000.0,87999.0,0.13952249]
[1763676886854,28.10413177,88000.0,87999.0,0.14052249]
[1763676887328,28.10413177,88000.0,87999.0,0.13952249]
[1763676887472,28.10413177,88000.0,87999.0,0.14052249]
[1763676888529,28.12196374,88000.0,87999.0,0.14052249]
[1763676889958,28.12196374,88000.0,87999.0,0.16605145]
[1763676890117,28.12196374,88000.0,87999.0,0.14052249]
[1763676891788,27.91395177,88000.0,87999.0,0.14052249]
[1763676892196,27.89612204,88000.0,87999.0,0.14052249]
[1763676892402,27.87212204,88000.0,87999.0,0.54691775]
[1763676892602,27.53143728,88000.0,87999.0,0.54691775]
[1763676892800,27.39669029,88000.0,87999.0,0.54691775]
[1763676893183,27.39669029,88000.0,87999.0,0.54591775]
[1763676893387,27.39669029,88000.0,87999.0,0.54691775]
[1763676893561,27.38818649,88000.0,87999.0,0.54691775]
[1763676894114,27.38818649,88000.0,87999.0,0.54591775]
[1763676894325,27.38818649,88000.0,87999.0,0.46252249]
[1763676894523,27.38818649,88000.0,87999.0,0.46452249]
[1763676895367,27.40601423,88000.0,87999.0,0.46452249]
[1763676895972,27.40601423,88000.0,87999.0,0.54819056]
[1763676897415,27.40601423,88000.0,87999.0,0.54619056]
[1763676897617,27.40601423,88000.0,87999.0,0.54819056]
[1763676898366,27.38201423,88000.0,87999.0,0.54819056]
[1763676899091,27.38201423,88000.0,87999.0,0.54619056]
[1763676899307,27.38201423,88000.0,87999.0,0.54819056]
[1763676900502,27.39984152,88000.0,87999.0,0.49608807]
[1763676900701,27.39984152,88000.0,87999.0,0.62854122]
[1763676900904,27.39984152,88000.0,87999.0,0.16977066]
[1763676901102,27.39984152,88000.0,87999.0,0.08942]
[1763676901486,27.39984152,88000.0,87999.0,0.14152249]
[1763676902264,27.39984152,88000.0,87999.0,0.13952249]
[1763676902380,27.39984152,88000.0,87999.0,0.14152249]
[1763676902787,27.2460651,88000.0,87999.0,0.13952249]
[1763676903075,26.02768914,88000.0,87999.0,0.46636249]
[1763676903279,25.52884461,88000.0,87999.0,0.46836249]
[1763676903482,25.4946835,88000.0,87999.0,0.58058728]
[1763676903655,25.08565736,88000.0,87999.0,0.50025541]
[1763676903830,25.05150032,88000.0,87999.0,0.49825541]
[1763676904166,24.00855471,88000.0,87999.0,0.58626249]
[1763676904370,22.47082524,88000.0,87999.0,0.65014073]
[1763676904601,21.69254422,88000.0,87999.0,1.02601603]
[1763676904806,21.24744568,88000.0,87999.0,0.90566185]
[1763676905005,21.1376132,88000.0,87999.0,0.8611187]
[1763676905211,21.10345616,88000.0,87999.0,1.488394]
[1763676905406,19.82869343,88000.0,87999.0,1.490394]
[1763676905658,19.79453639,88000.0,87999.0,1.490394]
[1763676905862,18.8490841,88000.0,87999.0,4.339794]
[1763676906062,18.8490841,88000.0,87999.0,4.32154818]
[1763676906063,18.34045016,88000.0,87999.0,4.32154818]
[1763676906177,18.30629312,88000.0,87999.0,4.28331964]
[1763676906382,17.03153039,88000.0,87999.0,4.33798781]
[1763676906618,16.99737335,88000.0,87999.0,4.33798781]
[1763676906813,16.55395783,88000.0,87999.0,4.33798781]
[1763676907018,16.51879933,88000.0,87999.0,4.33798781]
[1763676907216,16.4094487,88000.0,87999.0,4.33798781]
[1763676907421,15.13470276,88000.0,87999.0,4.33798781]
[1763676907737,14.64168841,88000.0,87999.0,4.33798781]
[1763676907943,14.60754816,88000.0,87999.0,4.33798781]
[1763676908160,14.57340791,88000.0,87999.0,4.43389455]
[1763676908366,13.94653389,88000.0,87999.0,4.37802781]
[1763676908582,13.91239364,88000.0,87999.0,4.37802781]
[1763676908761,13.84351029,88000.0,87999.0,4.37802781]
[1763676909117,13.80937004,88000.0,87999.0,4.37802781]
[1763676909393,13.74108954,88000.0,87999.0,4.37802781]
[1763676909555,13.70694929,88000.0,87999.0,4.37802781]
[1763676909752,13.67280904,88000.0,87999.0,4.37802781]
[1763676909954,13.6231839,88000.0,87999.0,4.37802781]
[1763676910307,13.58904256,88000.0,87999.0,4.04477002]
[1763676910518,13.55490122,88000.0,87999.0,3.94810422]
[1763676910689,13.52075988,88000.0,87999.0,0.55547569]
[1763676910863,13.48661854,88000.0,87999.0,0.55163569]
[1763676911090,13.4524772,88000.0,87999.0,0.65520409]
[1763676911294,13.41833586,88000.0,87999.0,0.60757818]
[1763676911613,13.35005318,88000.0,87999.0,0.87847569]
[1763676911827,13.31591184,88000.0,87999.0,0.93057818]
[1763676912130,13.26642533,88000.0,87999.0,0.63549518]
[1763676912349,13.23228399,88000.0,87999.0,0.64207851]
[1763676912526,13.23228399,88000.0,87999.0,0.27015215]
[1763676912694,13.23228399,88000.0,87999.0,0.37373008]
[1763676913037,13.05162952,88000.0,87999.0,0.27399215]
[1763676913604,13.05162952,88000.0,87999.0,0.68234484]
[1763676913882,13.0384125,88000.0,87999.0,0.68234484]
[1763676914117,12.988902,88000.0,87999.0,1.04884484]
[1763676914319,12.80103468,88000.0,87999.0,1.04884484]
[1763676914525,12.76688185,88000.0,87999.0,1.04884484]
[1763676914737,12.73272902,88000.0,87999.0,0.89569464]
[1763676914935,12.73272902,88000.0,87999.0,1.29569464]
[1763676915144,12.73272902,88000.0,87999.0,1.32894484]
[1763676915971,12.73272902,88000.0,87999.0,1.55622014]
[1763676916173,12.71727595,88000.0,87999.0,1.32894484]
[1763676916545,12.71727595,88000.0,87999.0,1.44884484]
[1763676916910,12.49353971,88000.0,87999.0,1.41559464]
[1763676917314,12.49353971,88000.0,87999.0,1.44884484]
[1763676918131,12.49353971,88000.0,87999.0,1.67612014]
[1763676919171,12.4408881,88000.0,87999.0,1.67612014]
[1763676919393,12.2581386,88000.0,87999.0,1.28092014]
[1763676919592,12.2239891,88000.0,87999.0,1.28092014]
[1763676919810,12.18984232,88000.0,87999.0,1.28092014]
[1763676919991,12.15569554,88000.0,87999.0,4.28092014]
[1763676920188,12.12129581,88000.0,87999.0,4.28092014]
[1763676920393,12.08714903,88000.0,87999.0,4.28092014]
[1763676920767,12.05300225,88000.0,87999.0,4.28092014]
[1763676920970,12.01885547,88000.0,87999.0,4.28092014]
[1763676921197,12.01885547,88000.0,87999.0,0.56445215]
[1763676921372,12.01885547,88000.0,87999.0,0.66824591]
[1763676921588,12.01885547,88000.0,87999.0,0.56829215]
[1763676921798,12.01885547,88000.0,87999.0,0.7203484]
[1763676922247,12.01885547,88000.0,87999.0,0.62039464]
[1763676922447,11.96070869,88000.0,87999.0,3.84766994]
[1763676922629,11.86651451,88000.0,87999.0,3.88092014]
[1763676922826,11.83236773,88000.0,87999.0,4.28092014]
[1763676923029,11.53058415,88000.0,87999.0,4.28092014]
[1763676923227,11.49644048,88000.0,87999.0,4.31656984]
[1763676923426,11.46229681,88000.0,87999.0,4.34790351]
[1763676923629,11.42815314,88000.0,87999.0,4.34790351]
[1763676923876,11.39400947,88000.0,87999.0,4.34790351]
[1763676924024,11.35278275,88000.0,87999.0,4.34790351]
[1763676924223,11.30490416,88000.0,87999.0,4.29580102]
[1763676924429,11.10177049,88000.0,87999.0,4.34790351]
[1763676924629,11.06662682,88000.0,87999.0,4.34790351]
[1763676924842,11.03248315,88000.0,87999.0,4.34790351]
[1763676925019,10.99933948,88000.0,87999.0,4.34790351]
[1763676925216,10.96519581,88000.0,87999.0,4.34790351]
[1763676925424,10.93105214,88000.0,87999.0,4.34790351]
[1763676925660,10.89690847,88000.0,87999.0,4.34790351]
[1763676925863,10.8627648,88000.0,87999.0,4.34790351]
[1763676926186,10.82862113,88000.0,87999.0,4.34790351]
[1763676926399,10.77909543,88000.0,87999.0,4.34790351]
[1763676926572,10.74495525,88000.0,87999.0,4.33794351]
[1763676926758,10.71081507,88000.0,87999.0,4.33794351]
[1763676926958,10.67667489,88000.0,87999.0,4.33794351]
[1763676927228,10.64253471,88000.0,87999.0,4.33794351]
[1763676927372,10.60839453,88000.0,87999.0,4.38794351]
[1763676927577,10.57425435,88000.0,87999.0,4.38794351]
[1763676927742,10.54011417,88000.0,87999.0,4.38794351]
[1763676927942,10.50597399,88000.0,87999.0,4.38794351]
[1763676928188,10.47183381,88000.0,87999.0,4.38794351]
[1763676928386,10.27377422,88000.0,87999.0,4.38794351]
[1763676928648,10.20549386,88000.0,87999.0,4.33406351]
[1763676928853,10.20549386,88000.0,87999.0,4.16515464]
[1763676929049,10.20549386,88000.0,87999.0,4.20224484]
[1763676932829,8.80689386,88000.0,87999.0,0.12155215]
[1763676933053,8.55689386,88000.0,87999.0,0.12539215]
[1763676933347,8.05589386,88000.0,87999.0,0.57749464]
[1763676933490,8.05589386,88000.0,87999.0,0.12539215]
[1763676933491,7.80589386,88000.0,87999.0,0.12539215]
[1763676933692,7.30689386,88000.0,87999.0,0.12539215]
[1763676934107,7.05589386,88000.0,87999.0,0.44839215]
[1763676934294,6.80589386,88000.0,87999.0,0.44839215]
[1763676934519,6.2904857,88000.0,87999.0,0.44939215]
[1763676934775,6.0404857,88000.0,87999.0,0.44939215]
[1763676934993,5.7904857,88000.0,87999.0,0.50149464]
[1763676935204,5.5404857,88000.0,87999.0,0.50149464]
[1763676935340,5.5404857,88000.0,87999.0,0.44555215]
[1763676935341,5.2904857,88000.0,87999.0,0.44555215]
[1763676935542,5.0404857,88000.0,87999.0,0.12639215]
[1763676935756,4.7904857,88000.0,87999.0,0.12639215]
[1763676935942,4.5404857,88000.0,87999.0,0.12539215]
[1763676936128,4.2904857,88000.0,87999.0,0.12539215]
[1763676936327,4.0404857,88000.0,87999.0,0.17949464]
[1763676936579,3.7904857,88000.0,87999.0,0.17949464]
[1763676936859,3.2904857,88000.0,87999.0,0.17749464]
[1763676937201,3.0404857,88000.0,87999.0,0.17949464]
[1763676937376,2.7904857,88000.0,87999.0,0.17949464]
[1763676937517,2.5404857,88000.0,87999.0,0.17949464]
[1763676937720,2.2904857,88000.0,87999.0,0.17749464]
[1763676938332,2.2904857,88000.0,87999.0,0.12155215]
[1763676938531,2.2904857,88000.0,87999.0,0.12539215]
[1763676939177,2.2904857,88000.0,87999.0,0.17749464]
[1763676939374,2.0404857,88000.0,87999.0,0.17949464]
[1763676939818,1.7904857,88000.0,87999.0,0.17749464]
[1763676939965,1.7904857,88000.0,87999.0,0.17849464]
[1763676940159,1.78927335,88000.0,87999.0,0.17849464]
[1763676940419,1.53927335,88000.0,87999.0,0.17849464]
[1763676940602,1.53927335,88000.0,87999.0,0.17749464]
[1763676941218,1.36864765,88000.0,87999.0,0.17749464]
[1763676941540,1.36864765,88000.0,87999.0,0.17949464]
[1763676941745,1.33448821,88000.0,87999.0,3.77099464]
[1763676941891,1.25755854,88000.0,87999.0,3.77099464]
[1763676942091,1.15662887,88000.0,87999.0,4.22099464]
[1763676942290,1.12246943,88000.0,87999.0,4.22099464]
[1763676942500,1.08830999,88000.0,87999.0,4.24696498]
[1763676942705,1.05416863,88000.0,87999.0,4.24496498]
[1763676942943,1.02002727,88000.0,87999.0,4.24496498]
[1763676943115,0.97995079,88000.0,87999.0,4.24696498]
[1763676943320,0.91286667,88000.0,87999.0,4.24696498]
[1763676943518,0.62557589,88000.0,87999.0,4.24496498]
[1763676943724,0.56081107,88000.0,87999.0,4.24496498]
[1763676943893,0.52666971,88000.0,87999.0,4.24496498]
[1763676944093,0.46717297,88000.0,87999.0,4.24496498]
[1763676944301,0.43303161,88000.0,87999.0,4.24496498]
[1763676944548,0.35014974,88000.0,87999.0,4.49156498]
[1763676944747,0.31600838,88000.0,87999.0,4.49156498]
[1763676944964,0.28186702,88000.0,87999.0,4.49156498]
[1763676945187,0.24772566,88000.0,87999.0,4.49156498]
[1763676945360,0.20370904,88000.0,87999.0,4.49156498]
[1763676945702,0.16956768,88000.0,87999.0,4.44156498]
[1763676945869,0.13542828,88000.0,87999.0,4.44156498]
[1763676946064,0.10128888,88000.0,87999.0,4.44156498]
[1763676946261,0.06714948,88000.0,87999.0,4.44156498]
[1763676946467,0.03301008,88000.0,87999.0,4.44156498]
[1763676946795,0.01801949,88050.0,88040.0,0.01999998]
[1763676947002,0.01801949,88050.0,88042.0,0.323]
[1763676947523,0.01801949,88050.0,88043.0,0.03412268]
[1763676947681,0.01801949,88050.0,88043.0,0.02170268]
[1763676950339,0.01801949,88050.0,88043.0,0.02370268]
[1763676950882,0.0002,88050.0,88043.0,0.02370268]
[1763676954473,0.00020149,88057.0,88050.0,0.01999998]
[1763676954692,0.00020149,88057.0,88051.0,0.32684]
[1763676955233,0.00020149,88057.0,88052.0,0.01022642]
[1763676956468,0.00020149,88057.0,88052.0,0.01122642]
[1763676956887,0.00020149,88057.0,88053.0,0.00384]
[1763676958708,0.00020149,88057.0,88053.0,0.00484]
[1763676960271,0.00020149,88057.0,88054.0,0.00384]
[1763676960693,0.00170185,88055.0,88054.0,0.00384]
[1763676962545,0.00170185,88055.0,88054.0,0.00484]
[1763676963879,0.00170185,88055.0,88054.0,0.00463851]
[1763676964479,0.01951882,88055.0,88054.0,0.00463851]
[1763676964793,0.00170185,88055.0,88054.0,0.00463851]
[1763676965577,0.59714,88064.0,88054.0,0.00463851]
[1763676965820,0.76061511,88070.0,88054.0,0.00463851]
[1763676965973,0.76061511,88064.0,88054.0,0.001]
[1763676966398,0.76061511,88064.0,88046.0,0.00384]
[1763676967697,0.01781773,88060.0,88054.0,0.001]
[1763676968093,0.01781773,88060.0,88046.0,0.00384]
[1763676968295,0.77843284,88060.0,88046.0,0.00384]
[1763676968500,0.77843284,88060.0,88046.0,0.00484]
[1763676968945,0.01781773,88060.0,88046.0,0.00384]
[1763676969266,0.01781773,88060.0,88046.0,0.00484]
[1763676970155,0.76071606,88070.0,88046.0,0.00484]
[1763676971033,0.76071606,88070.0,88046.0,0.00384]
[1763676971564,0.76091606,88080.0,88046.0,0.00384]
[1763676971766,0.76071606,88070.0,88046.0,0.00384]
[1763676971968,0.00024745,88063.0,88053.0,0.00053949]
[1763676972702,0.01781544,88061.0,88053.0,0.00053949]
[1763676973386,0.01281544,88061.0,88053.0,0.00053949]
[1763676973773,0.00024745,88063.0,88053.0,0.00053949]
[1763676974472,0.00024745,88063.0,88053.0,0.00153949]
[1763676975144,0.00024745,88063.0,88053.0,0.00053949]
[1763676975345,0.00024745,88063.0,88053.0,0.00153949]
[1763676976849,0.71586351,88070.0,88053.0,0.00153949]
[1763676977651,0.76091606,88080.0,88053.0,0.00053949]
[1763676978060,0.76091606,88080.0,88053.0,0.00153949]
[1763676978467,0.76091606,88080.0,88053.0,0.00053949]
[1763676979582,0.76071606,88070.0,88053.0,0.00053949]
[1763676980912,0.76091606,88080.0,88053.0,0.00153949]
[1763676981518,0.76091606,88080.0,88054.0,0.013628]
[1763676982429,0.01781525,88074.0,88053.0,0.00053949]
[1763676982680,0.76091606,88080.0,88053.0,0.00053949]
[1763676984058,0.09715,88096.0,88053.0,0.00053949]
[1763676984259,0.76071606,88080.0,88053.0,0.09229692]
[1763676985414,0.76071606,88080.0,88053.0,0.07866877]
[1763676985738,0.01781535,88074.0,88053.0,0.07866877]
[1763676986336,0.01781535,88074.0,88054.0,0.013628]
[1763676986938,0.01781535,88074.0,88053.0,0.07966877]
[1763676987156,0.01781535,88074.0,88054.0,0.013628]
[1763676987362,0.76071606,88070.0,88053.0,0.07866877]
[1763676987578,0.76071606,88070.0,88053.0,0.00053949]
[1763676987789,0.76071606,88070.0,88054.0,0.001]
[1763676989320,0.01781535,88074.0,88054.0,0.001]
[1763676989551,0.01781535,88074.0,88053.0,0.00053949]
[1763676990159,0.01781545,88069.0,88053.0,0.00053949]
[1763676990987,0.01781545,88069.0,88053.0,0.01416764]
[1763676993410,0.01781545,88069.0,88053.0,0.09229692]
[1763676993993,0.01781545,88069.0,88055.0,0.323]
[1763676994194,0.76091606,88090.0,88055.0,0.323]
[1763676994395,0.76071606,88080.0,88055.0,0.323]
[1763676994963,0.0002,88090.0,88054.0,0.323]
[1763676995165,0.76071606,88080.0,88054.0,0.323]
[1763676995521,0.0002,88090.0,88054.0,0.323]
[1763676995748,0.76091606,88090.0,88055.0,0.01362784]
[1763676995945,0.76091606,88090.0,88060.0,0.00999999]
[1763676996109,0.76091606,88090.0,88061.0,0.00384]
[1763676998352,0.5801921,88090.0,88061.0,0.00384]
[1763676998536,0.01781444,88099.0,88062.0,0.01362676]
[1763676998738,0.76071606,88090.0,88062.0,0.09175604]
[1763676999729,0.76071606,88090.0,88062.0,0.07812928]
[1763677000394,0.76071606,88090.0,88063.0,0.0136266]
[1763677000774,0.53227229,88090.0,88063.0,0.0136266]
[1763677001094,0.53227229,88090.0,88070.0,0.00999999]
[1763677001308,0.01781444,88099.0,88070.0,0.00999999]
[1763677001509,0.53227229,88090.0,88071.0,0.01362537]
[1763677001684,0.53227229,88090.0,88071.0,0.41475465]
[1763677001884,0.53227229,88090.0,88072.0,0.33662521]
[1763677002127,0.53227229,88090.0,88073.0,0.00384]
[1763677002932,0.01781444,88099.0,88071.0,0.07812928]
[1763677002933,0.53227229,88083.0,88071.0,0.07812928]
[1763677003109,0.53227229,88083.0,88072.0,0.00384]
[1763677005225,0.01781444,88099.0,88072.0,0.00384]
[1763677005226,0.01781444,88099.0,88080.0,0.00999999]
[1763677005426,0.53227229,88090.0,88073.0,0.323]
[1763677006620,0.01781444,88099.0,88073.0,0.323]
[1763677007222,0.53227229,88090.0,88073.0,0.323]
[1763677007663,0.53227229,88090.0,88073.0,0.00384]
[1763677008021,0.53227229,88090.0,88072.0,0.00384]
[1763677008435,0.53604229,88100.0,88072.0,0.00384]
[1763677008660,0.33267911,88100.0,88072.0,0.00384]
[1763677008867,0.01781218,88086.0,88072.0,0.00384]
[1763677009048,0.53227229,88090.0,88072.0,0.00384]
[1763677010701,0.53227229,88090.0,88063.0,0.07812928]
[1763677010702,0.53227229,88082.0,88063.0,0.07812928]
[1763677010899,0.53227229,88082.0,88064.0,0.00384]
[1763677011108,0.53227229,88090.0,88064.0,0.00384]
[1763677011442,0.00034015,88074.0,88064.0,0.00384]
[1763677011563,0.53227229,88090.0,88064.0,0.00384]
[1763677011762,0.00024738,88071.0,88064.0,0.00384]
[1763677012445,0.0178131,88070.0,88064.0,0.00384]
[1763677013008,0.0178131,88070.0,88064.0,0.001]
[1763677013416,0.0178131,88070.0,88064.0,0.01462645]
[1763677014462,0.0178131,88070.0,88061.0,0.00053943]
[1763677014665,0.0178131,88070.0,88064.0,0.001]
[1763677015507,0.53227229,88074.0,88061.0,0.00053943]
[1763677015717,0.53227229,88080.0,88070.0,0.04911]
[1763677015836,1.06454458,88080.0,88065.0,0.02455]
[1763677016036,0.53227229,88075.0,88065.0,0.02455]
[1763677016886,0.53254316,88075.0,88065.0,0.02455]
[1763677019330,0.06606,88066.0,88061.0,0.00053943]
[1763677019491,0.09628,88074.0,88061.0,0.00053943]
[1763677019492,0.0908,88062.0,88061.0,0.00053943]
[1763677020482,0.18708,88062.0,88061.0,0.00053943]
[1763677020645,0.205788,88062.0,88061.0,0.00053943]
[1763677020813,0.18708,88062.0,88061.0,0.00053943]
[1763677021230,0.20489839,88062.0,88061.0,0.00053943]
[1763677021470,0.18708,88062.0,88061.0,0.00053943]
[1763677022111,0.02455,88075.0,88061.0,0.09875943]
[1763677022285,0.02455,88075.0,88069.0,0.04911]
[1763677022488,0.04858,88076.0,88061.0,0.00053943]
[1763677022711,0.53254316,88071.0,88061.0,0.00053943]
[1763677022846,0.53254316,88071.0,88062.0,0.04911]
[1763677023031,0.53254316,88071.0,88070.0,0.07366]
[1763677023231,1.06508632,88080.0,88070.0,0.07366]
[1763677023822,0.53254316,88080.0,88079.0,0.04911]
[1763677024041,0.04858,88093.0,88079.0,0.04911]
[1763677024042,0.53254316,88089.0,88079.0,0.04911]
[1763677024429,0.01781542,88087.0,88079.0,0.04911]
[1763677026655,0.01781542,88087.0,88070.0,0.02455]
[1763677026656,0.01781542,88087.0,88086.0,0.04911]
[1763677027076,0.01781542,88087.0,88086.0,0.09822]
[1763677027333,0.60481983,88100.0,88086.0,0.09822]
[1763677027538,0.60481983,88100.0,88086.0,0.04911]
[1763677027767,0.60481983,88100.0,88099.0,0.02455]
[1763677027973,0.60481983,88109.0,88099.0,0.02455]
[1763677029606,0.08012198,88108.0,88099.0,0.02455]
[1763677029812,0.60481983,88109.0,88099.0,0.02455]
[1763677029987,0.60481983,88109.0,88071.0,0.323]
[1763677029988,0.11405652,88100.0,88092.0,0.02455]
[1763677030306,0.00068017,88093.0,88092.0,0.02455]
[1763677030844,0.00068017,88093.0,88085.0,0.02455]
[1763677030845,0.16450017,88093.0,88085.0,0.02455]
[1763677031043,0.65339983,88100.0,88085.0,0.02455]
[1763677031242,0.00046379,88086.0,88085.0,0.02455]
[1763677032696,0.00046379,88086.0,88085.0,0.07366]
[1763677033100,0.00046379,88086.0,88085.0,0.12277]
[1763677033516,0.00046379,88086.0,88085.0,0.44577]
[1763677034299,0.00046379,88086.0,88085.0,0.39766]
[1763677035161,0.00046379,88086.0,88085.0,0.324]
[1763677035764,0.00046379,88086.0,88073.0,0.04911]
[1763677036026,0.60481983,88090.0,88073.0,0.04911]
[1763677039324,0.09924,88100.0,88073.0,0.04911]
[1763677039523,0.60481983,88090.0,88073.0,0.04911]
[1763677039945,0.66530181,88090.0,88073.0,0.04911]
[1763677040377,0.60481983,88083.0,88070.0,0.02455]
[1763677040914,0.01781557,88080.0,88070.0,0.02455]
[1763677041121,0.01781557,88080.0,88053.0,0.00384]
[1763677041122,0.00024738,88079.0,88054.0,0.323]
[1763677041275,0.00024738,88079.0,88071.0,0.02455]
[1763677042735,0.06458,88072.0,88053.0,0.00384]
[1763677043391,0.04234,88070.0,88052.0,0.04911]
[1763677044232,0.01781606,88070.0,88052.0,0.04911]
[1763677044935,0.01781606,88070.0,88069.0,0.00153934]
[1763677045503,0.01781606,88070.0,88069.0,0.00053934]
[1763677045715,0.01781606,88070.0,88069.0,0.02608934]